{"text_format":"1","workbook":"xlsx","n_sheets":1,"sheets":["Ostatní vybavení"],"not_rendered":{"charts":0,"images":0,"macros":0,"external_links":0,"defined_names":5,"comments":0,"pivot_tables":0},"unopened":[],"bounds":{"document_bytes":16777216,"sheet_cells":100000,"rows_first":2000,"rows_last":500,"rows_between":2000,"halvings":0,"cell_chars":16384,"cell_head_chars":4096},"cells_cut":0,"cells_raw":0,"read":"whole","date_system":"1900"}

{"sheet":"Ostatní vybavení","index":0,"n_rows":26,"n_cols":16,"rows_kept":26,"cut":false,"hidden":false,"merged":[[3,0,3,1],[4,0,4,1],[15,0,15,1],[18,0,18,1],[9,0,9,1],[6,0,6,1]]}
[]
[]
["Č. poz.","Popis","Ks / Kpl","Rozměry (Š × H × V) (mm)","230 V (kW)","400 V (kW)","Příkon celkový (kW)","Plyn","Voda studená","Voda teplá","Voda studená změkčená","Odpad","Poznámka","Cena za ks     bez DPH","Cena celkem bez DPH","Cena celkem vč. DPH"]
["1. PP"]
["S1.107 – Sklad zeleniny"]
[3,"PLASTOVÝ ROŠT NA BRAMBORY osazený na podlaze - statická nosnost 1600kg, dynamická nosnost 1000 kg. Rošt bude stohovatelný",2,"1200 x 1000",null,null,null,null,null,null,null,null,null,0,{"$f":"C6*N6","v":0}]
["S1.109 – Čistá zelenina"]
["8.1","KOSTIČKOVAČ 10 x 10 x 10 mm pro stolní kráječ zeleniny CL 52. Složený ze dvou disků: plátkovač a mřížka.",1,null,null,null,null,null,null,null,null,null,null,0,{"$f":"C8*N8","v":0}]
["8.2.","DRŽÁK disků nástěnný nerez, 3 věšáky pro 6 disků pro stolní kráječ zeleniny CL 52.",1,null,null,null,null,null,null,null,null,null,null,0,{"$f":"C9*N9","v":0}]
["S1.105 – Varna"]
[23,"VAKUOVACÍ BALICÍ STROJ - s plně nerezovou konstrukcí, hluboko tažená vakuová komora se zaoblenými rohy, transparentní víko, lišta 420 mm, šířka sváru 3,5 mm, digitální ovládání, rozměry komory 370 x 420 x 180 mm, délka cyklu 20-40 s",1,"530 x 490 x440",0.55000000000000004,null,null,null,null,null,null,null,null,0,{"$f":"C11*N11","v":0}]
["23.1.1","MATRICE pro zatavovací baličku Horeca Termopack SV 400. Pro dvoudílné misky modul GN 1/4 265x160 mm. Vybaven gumovým těsněním, které zaručuje dokonalé usazení misky při jejím zatavování.",1,null,null,null,null,null,null,null,null,null,null,0,{"$f":"C12*N12","v":0}]
["23.1.2","MATRICE pro zatavovací baličku Horeca Termopack SV 400. Pro dvoudílné misky modul GN 1/8 160x130 mm. Vybaven gumovým těsněním, které zaručuje dokonalé usazení misky při jejím zatavování.",1,null,null,null,null,null,null,null,null,null,null,0,{"$f":"C13*N13","v":0}]
["32.1.","MLÝNEK NA MASO - mele maso nahrubo a potom najemno v jednom cyklu, průměr matrice 98 mm, výkon až 450 kg/hod, celonerezové provedení, 1x háček, 1xtlačka na vkládání masa, 1xvelká násypná mísa. Součástí dodávky je také průtlačná deska 4, 5, 12 mm, stírací nůž, křížový nůž",1,"350x250x300",null,null,null,null,null,null,null,null,null,0,{"$f":"C14*N14","v":0}]
[42,"Stolní váha váživost 15 kg, Kompaktní dvourozsahová přenosná stolní váha s výpočtem ceny pro komerční použití. \n3 podsvětlené LCD displeje s klávesnicí na straně operátora (prodejce) \nMechanická vodotěsná číslicová klávesnice s akustickou indikací stisknuté klávesy\nNerezová plošina 300x230 mm\nZabudovaná baterie (cca. 70 hodin provozu na jedno nabití) a dobíjecí (napájecí) adaptér 230VAC\nKonektor RS232 pro připojení tiskárny",1,"320x125x330",null,null,null,null,null,null,null,null,null,0,{"$f":"N15*C15","v":0},{"$f":"O15*1.21","v":0}]
["1.98 – Bar"]
[26,"ODŠŤAVŇOVAČ CITRUSŮ s výpustným samoobslužným ventilem - automatické spuštění po vhození citrusu do podavače, drátěný podavač s kapacitou na 4 ks pomerančů, s 2 sběrnými nádobami na slupky, sběrná vanička se sítkem s výpustným ventilem, dvojitý magnetický bezpečnostní detektor, elektronická ochrana motoru, digitální displej s trvoalou inidkaí počtu zpracovaných pomerančů, ochrana proti vlhkosti IP-X4, pro lisování plodů velikosti 62 až 81 mm, kalibrátor pomerančů,",1,"500 x 475 x 740",0.3,null,null,null,null,null,null,null,null,0,{"$f":"C17*N17","v":0}]
[27,"MIXÉR BAROVÝ - min. 40 programů pro mixování produktu teplého, studeného, mraženého, digitální LED displej pro komunikaci s mixerem, přímá tlačítka pro volby programu a tlačítko pulsní volby, funkce interlock. Včetně protihlukového izolovaného krytu nádoby, izolované motorové jednotky, USB rozhraní pro upgrade softwaru, 2 ks mixovacích nádob každá 1,9 l bez použití BPA, protiskluzových lyžin. Produkce 200-300 koktejlů za den. Přístoj je vybaven tepelnou ochrannou, 9 rychlostmi, automatickým vypnutím a automatickou regulací otáček.",1,"220 x 230 x 440",1.82,null,null,null,null,null,null,null,null,0,{"$f":"C18*N18","v":0}]
[" 1.98 – Bufet"]
[25,{"$f":"B$15","v":"Stolní váha váživost 15 kg, Kompaktní dvourozsahová přenosná stolní váha s výpočtem ceny pro komerční použití. \n3 podsvětlené LCD displeje s klávesnicí na straně operátora (prodejce) \nMechanická vodotěsná číslicová klávesnice s akustickou indikací stisknuté klávesy\nNerezová plošina 300x230 mm\nZabudovaná baterie (cca. 70 hodin provozu na jedno nabití) a dobíjecí (napájecí) adaptér 230VAC\nKonektor RS232 pro připojení tiskárny"},{"$f":"C$15","v":1},"320x125x330",0,0,0,0,0,0,0,0,null,{"$f":"N15","v":0},{"$f":"N20*C20","v":0},{"$f":"O20*1.21","v":0}]
[null,"Celkem",null,null,null,null,null,null,null,null,null,null,null,null,{"$f":"SUM(O5:O20)","v":0},{"$f":"SUM(P5:P20)","v":0}]
[]
[null,"Poznámky a další požadavky zadavatele:"]
[null,"Dodavatel předloží v nabídce technické listy výrobce ke všem položkám nabízené technologie, ze kterých bude patrné splnění technických požadavků dle zadávací dokumentace."]
[null,"Součástí nabídkové ceny bude i koordinace s generálním dodavatelem stavby a kontrola správnosti napojovacích bodů na stavbě."]
[null,"Pro uvedené rozměry a číselně vyjádřené hodnoty je povolená tolerance +/- 5 %. Neplatí pro hodnoty, kde je uvedeno minimální nebo maximální údaj."]